[Event "ETCC Open 2023"]
[Site "Budva"]
[Date "2023.11.13"]
[Round "3.41"]
[White "Erdos, Viktor"]
[Black "Paichadze, Luka"]
[Result "1/2-1/2"]
[ECO "A17"]
[WhiteElo "2557"]
[BlackElo "2501"]
[Annotator "RC"]
[PlyCount "167"]
[EventDate "2023.11.10"]
[EventType "team-tourn"]
[EventCountry "MNE"]
[SourceTitle "playchess.com"]
[Source "ChessBase"]
[SourceQuality "1"]
[WhiteTeam "Hungary"]
[BlackTeam "Georgia"]
[WhiteTeamCountry "HUN"]
[BlackTeamCountry "GEO"]
[TimeControl "40/5400+30:1800+30"]

1. Nf3 {[%emt 0:03:15]} Nf6 {[%emt 0:00:34]} 2. c4 {[%emt 0:00:06]} e6 {[%emt 0:00:25]} 3. Nc3 {[%emt 0:00:05]} Bb4 {[%emt 0:00:40]} 4. g4 {[%emt 0:00:05]} h6 {[%emt 0:03:55]} 5. Rg1 {[%emt 0:00:19]} Nc6 {[%emt 0:02:00]} 6. Qc2 {[%emt 0:04:13]} d5 {[%emt 0:01:15]} 7. a3 {[%emt 0:00:37]} Bxc3 {[%emt 0:07:53]} 8. dxc3 {[%emt 0:00:08]} e5 {[%emt 0:11:18]} 9. g5 {[%emt 0:05:38]} hxg5 {[%emt 0:00:49]} 10. Bxg5 {[%emt 0:00:05]} e4 {[%emt 0:16:25]} 11. Nd2 {[%emt 0:39:04]} Bf5 {[%emt 0:00:57]} 12. O-O-O {[%emt 0:00:08]} Ne7 {[%emt 0:12:27]} 13. e3 {[%emt 0:07:58]} Rxh2 {[%emt 0:08:05]} 14. cxd5 {[%emt 0:01:40]} Rxf2 {[%emt 0:04:08]} 15. Bh4 {[%emt 0:16:48]} Rh2 {[%emt 0:00:16]} 16. Bg3 {[%emt 0:00:03]} Rh7 {[%emt 0:01:32]} 17. c4 {[%emt 0:00:06]} Bg6 {[%emt 0:05:45]} 18. Bf4 {[%emt 0:05:22]} Nf5 {[%emt 0:00:47]} 19. Bg2 {[%emt 0:05:39]} Qe7 {[%emt 0:04:24]} 20. Qc3 {[%emt 0:01:52]} Rd8 {[%emt 0:07:07]} 21. Nb3 {[%emt 0:02:47]} Nh5 {[%emt 0:02:09]} 22. Rge1 {[%emt 0:04:46]} Nh4 {[%emt 0:02:54]} 23. Bh1 {[%emt 0:00:28]} Nxf4 {[%emt 0:03:38]} 24. exf4 {[%emt 0:00:02]} Kf8 {[%emt 0:00:05]} 25. Nd4 {[%emt 0:01:03]} Re8 {[%emt 0:00:38]} 26. c5 {[%emt 0:00:30]} Qf6 {[%emt 0:00:51]} 27. Nb5 {[%emt 0:00:40]} Qxf4+ {[%emt 0:00:47]} 28. Kb1 {[%emt 0:00:31]} a6 {[%emt 0:01:22]} 29. Nd4 {[%emt 0:00:28]} Nf3 {[%emt 0:00:29]} 30. Bxf3 {[%emt 0:00:18]} exf3+ {[%emt 0:00:06]} 31. Ka2 {[%emt 0:00:01]} Rxe1 {[%emt 0:00:40]} 32. Rxe1 {[%emt 0:00:50]} f2 {[%emt 0:00:10]} 33. Rf1 {[%emt 0:00:25]} Be4 {[%emt 0:01:04]} 34. d6 {[%emt 0:00:27]} Bd5+ {[%emt 0:00:35]} 35. b3 {[%emt 0:00:04]} Rh1 {[%emt 0:01:06]} 36. dxc7 {[%emt 0:00:49]} Qxc7 {[%emt 0:00:05]} 37. Rxf2 {[%emt 0:01:00]} Rh2 {[%emt 0:00:59]} 38. Qd2 {[%emt 0:00:20]} Rxf2 {[%emt 0:00:10]} 39. Qxf2 {[%emt 0:00:01]} Kg8 {[%emt 0:00:37]} 40. Qh4 {[%emt 0:00:12]} f6 {[%emt 0:00:39]} 41. Qh5 {[%emt 0:03:33]} Qxc5 {[%emt 0:01:25]} 42. Qe8+ {[%emt 0:00:15]} Qf8 {[%emt 0:00:07]} 43. Qd7 {[%emt 0:00:09]} Bf7 {[%emt 0:09:04]} 44. Qxb7 {[%emt 0:02:46]} Qd8 {[%emt 0:00:33]} 45. Qa7 {[%emt 0:02:58]} g6 {[%emt 0:01:50]} 46. Kb2 {[%emt 0:03:14]} f5 {[%emt 0:02:42]} 47. Kc3 {[%emt 0:02:06]} Qa5+ {[%emt 0:02:09]} 48. Kd3 {[%emt 0:04:25]} Qxa3 {[%emt 0:02:24]} 49. Qb8+ {[%emt 0:06:25]} Qf8 {[%emt 0:00:29]} 50. Qb6 {[%emt 0:02:36]} Qc8 {[%emt 0:02:17]} 51. Qd6 {[%emt 0:03:06]} Qb7 {[%emt 0:04:16]} 52. Kc3 {[%emt 0:00:01]} Qc8+ {[%emt 0:05:24]} 53. Kd2 {[%emt 0:01:18]} Qa8 {[%emt 0:01:53]} 54. Nc6 {[%emt 0:01:04]} Qe8 {[%emt 0:00:15]} 55. Ne5 {[%emt 0:02:00]} a5 {[%emt 0:01:54]} 56. Qf6 {[%emt 0:03:02]} Qf8 {[%emt 0:00:38]} 57. Nc6 {[%emt 0:00:31]} Qh6+ {[%emt 0:00:35]} 58. Kd3 {[%emt 0:00:24]} Qh3+ {[%emt 0:00:37]} 59. Kd2 {[%emt 0:00:43]} Qg2+ {[%emt 0:00:21]} 60. Ke3 {[%emt 0:00:19]} Qe4+ {[%emt 0:00:34]} 61. Kf2 {[%emt 0:00:31]} f4 {[%emt 0:01:06]} 62. Ne7+ {[%emt 0:00:18]} Kf8 {[%emt 0:00:12]} 63. Nxg6+ {[%emt 0:00:12]} Qxg6 {[%emt 0:00:20]} 64. Qxf4 {[%emt 0:01:41]} Qc2+ {[%emt 0:00:59]} 65. Ke1 {[%emt 0:00:00]} Qc3+ {[%emt 0:00:14]} 66. Qd2 {[%emt 0:00:00]} Qe5+ {[%emt 0:00:19]} 67. Qe2 {[%emt 0:00:00]} Qc5 {[%emt 0:00:23]} 68. Qf3 {[%emt 0:00:28]} Ke7 {[%emt 0:01:08]} 69. Kd2 {[%emt 0:00:07]} Be6 {[%emt 0:00:17]} 70. Qd3 {[%emt 0:01:45]} Qf2+ {[%emt 0:00:41]} 71. Kc3 {[%emt 0:00:27]} Qf6+ {[%emt 0:00:19]} 72. Qd4 {[%emt 0:00:17]} Qf3+ {[%emt 0:00:03]} 73. Kd2 {[%emt 0:00:39]} Qf5 {[%emt 0:00:47]} 74. Kc3 {[%emt 0:00:37]} Qb5 {[%emt 0:00:27]} 75. b4 {[%emt 0:00:34]} a4 {[%emt 0:00:42]} 76. Qc5+ {[%emt 0:00:13]} Qxc5+ {[%emt 0:00:03]} 77. bxc5 {[%emt 0:00:01]} a3 {[%emt 0:00:06]} 78. Kc2 {[%emt 0:00:16]} Ba2 {[%emt 0:00:11]} 79. Kc3 {[%emt 0:00:04]} Bc4 {[%emt 0:00:20]} 80. Kc2 {[%emt 0:00:06]} Ba2 {[%emt 0:00:39]} 81. Kc3 {[%emt 0:00:02]} Kd7 {[%emt 0:00:35]} 82. Kb4 {[%emt 0:00:03]} Kc6 {[%emt 0:00:02]} 83. Kxa3 {[%emt 0:00:04]} Kxc5 {[%emt 0:00:03]} 84. Kxa2 {[%emt 0:00:03]} 1/2-1/2

[Event "ETCC Open 2023"]
[Site "Budva"]
[Date "2023.11.13"]
[Round "3.42"]
[White "Mchedlishvili, Mikheil"]
[Black "Gledura, Benjamin"]
[Result "1/2-1/2"]
[ECO "A13"]
[WhiteElo "2564"]
[BlackElo "2633"]
[Annotator "TA"]
[PlyCount "132"]
[EventDate "2023.11.10"]
[EventType "team-tourn"]
[EventCountry "MNE"]
[SourceTitle "playchess.com"]
[Source "ChessBase"]
[SourceQuality "1"]
[WhiteTeam "Georgia"]
[BlackTeam "Hungary"]
[WhiteTeamCountry "GEO"]
[BlackTeamCountry "HUN"]
[TimeControl "40/5400+30:1800+30"]

{[%evp 9,132,13,22,14,23,12,21,21,20,10,24,0,12,18,16,11,40,13,25,15,11,8,8,0,7,7,10,7,10,0,6,0,6,9,10,7,12,4,6,-25,-48,-27,-22,-52,-8,-14,0,0,0,0,0,0,22,23,22,14,33,39,68,44,94,82,113,86,88,88,77,2,5,6,6,8,8,6,79,79,79,79,79,79,79,79,79,79,79,79,79,79,87,87,87,87,87,87,87,87,87,87,87,87,87,87,87,87,87,87,87,87,87,87,87,87,87,87,87,87,87,87,87,0,0,0,0,0,0]} 1. c4 {[%emt 0:00:07]} e6 {[%emt 0:00:26]} 2. Nf3 {[%emt 0:00:32]} d5 {[%emt 0:00:24]} 3. g3 {[%emt 0:01:06]} d4 {[%emt 0:00:43]} 4. Bg2 {[%emt 0:00:58]} Nc6 {[%emt 0:00:14]} 5. O-O {[%emt 0:02:44]} Bc5 {[%emt 0:00:57]} 6. d3 {[%emt 0:01:46] A13: English Opening: 1...e6.} Nf6 {[%emt 0:00:41]} 7. Nbd2 {[%emt 0:01:58][%cal Bb1d2,Bd2b3,Bb3c5][%mdl 32] 7.Nbd2 is better than 7.Na3.} O-O {[%emt 0:00:45]} 8. Nb3 {[%emt 0:03:55]} Be7 {[%emt 0:00:11]} 9. e3 {[%emt 0:00:55]} dxe3 {[%emt 0:00:15]} 10. Bxe3 {[%emt 0:01:22]} Ng4 {[%emt 0:00:20]} 11. Bc5 {[%emt 0:03:33]} Bxc5 {[%emt 0:00:32]} 12. Nxc5 {[%emt 0:00:09]} b6 {[%emt 0:00:52]} 13. Nb3 {[%emt 0:06:34]} Bb7 {[%emt 0:10:21] [#]} 14. d4 $146 {[%emt 0:04:17]} ({Predecessor:} 14. h3 Nf6 15. d4 Qc8 16. Qe2 a5 17. Rad1 a4 18. Nbd2 a3 19. b3 Nb4 20. Nb1 {½-½ Gelfand,B (2668)-Keymer,V (2693) Julius Baer GenCup Prelim rapid 2022 (10)}) 14... Ne7 {[%emt 0:02:23]} 15. Qe2 {[%emt 0:04:20]} Nf6 {[%emt 0:01:07]} 16. Rad1 {[%emt 0:01:44]} Bxf3 {[%emt 0:01:01]} 17. Qxf3 {[%emt 0:05:05]} c6 {[%emt 0:00:39]} 18. Qc3 {[%emt 0:00:40]} Qc7 {[%emt 0:10:02]} 19. Nd2 {[%emt 0:02:47]} Rfd8 {[%emt 0:01:38]} 20. Nf3 {[%emt 0:07:22]} Rd6 {[%emt 0:22:00]} 21. Rd3 {[%emt 0:08:41]} Rad8 {[%emt 0:08:03]} 22. Rfd1 {[%emt 0:01:58]} c5 {[%emt 0:03:33]} 23. Ne5 {[%emt 0:05:52]} h5 {[%emt 0:11:33]} 24. d5 {[%emt 0:08:48]} exd5 {[%emt 0:00:42]} 25. cxd5 {[%emt 0:02:25]} b5 {[%emt 0:00:59] Wards off Nc4} ({Don't play} 25... Nfxd5 26. Qb3 Re6 27. Nc4 $14 (27. Bxd5 Rxd5 28. Rxd5 Nxd5 $11)) 26. Qd2 {[%emt 0:13:44]} Nfxd5 {[%emt 0:10:02]} (26... c4 $5 {[%cal Rc4d3]} 27. Rd4 a6 $15) 27. h4 {[%emt 0:02:30]} f6 {[%emt 0:07:02]} 28. Ng6 {[%emt 0:01:58][%mdl 64] Deflection} Nxg6 {[%emt 0:00:37]} 29. Bxd5+ {[%emt 0:01:03]} Kf8 $1 {[%emt 0:00:10] And now ...Ne5 would win.} 30. Qe2 {[%emt 0:01:31]} Qe7 {[%emt 0:02:09]} ({Don't take} 30... Ne5 31. Qxh5 Nf7 32. Be4 $16 (32. Qh7 c4 $14)) 31. Be4 {[%emt 0:03:49] aiming for Rxd6.} Rxd3 {[%emt 0:03:52]} 32. Rxd3 {[%emt 0:00:02]} Ne5 {[%emt 0:01:22]} 33. Rxd8+ {[%emt 0:00:33]} Qxd8 {[%emt 0:00:01]} 34. Qxb5 $14 {[%emt 0:00:26][%mdl 4096] Endgame KQB-KQN} Qb6 {[%emt 0:00:23]} (34... Qd6 $14) 35. Qe2 {[%emt 0:01:02] White is more active.} (35. Qxb6 {simplifies} axb6 36. f4 Nc4 37. b3) 35... Qe6 {[%emt 0:00:41]} 36. Qxh5 {[%emt 0:01:22]} Qxa2 {[%emt 0:00:13]} 37. Qf5 {[%emt 0:00:26]} Qa6 {[%emt 0:01:25] Against Qc8+} 38. Bd5 {[%emt 0:00:20]} (38. h5 $16) 38... g6 $11 {[%emt 0:00:26]} 39. Qc2 {[%emt 0:00:31]} Qd6 {[%emt 0:00:18]} 40. Qb3 {[%emt 0:00:35]} Qb6 {[%emt 0:00:44]} 41. Qe3 {[%emt 0:30:45]} c4 {[%emt 0:09:45]} (41... Kg7 $1 $11 {remains equal.}) 42. Qa3+ $1 $16 {[%emt 0:00:00]} Ke8 {[%emt 0:00:22] [#]} 43. Bxc4 $1 {[%emt 0:00:00][%mdl 64] Decoy} Nxc4 {[%emt 0:02:33]} 44. Qa4+ {[%emt 0:00:00]} Kf8 {[%emt 0:00:13] Strongly threatening ...Ne5.} 45. Qxc4 {[%emt 0:00:00]} Qxb2 {[%emt 0:00:05] KQ-KQ} 46. Qc5+ {[%emt 0:00:00]} Kg8 {[%emt 0:00:22]} 47. Qxa7 {[%emt 0:00:00]} Qc1+ {[%emt 0:00:22]} 48. Kh2 {[%emt 0:00:00]} Qc6 {[%emt 0:01:05]} 49. Qe7 {[%emt 0:00:00]} Qf3 {[%emt 0:00:53]} 50. Qe3 {[%emt 0:00:00]} Qc6 {[%emt 0:00:16]} 51. g4 {[%emt 0:00:00]} Qd6+ {[%emt 0:00:18]} 52. Kh3 {[%emt 0:00:00]} Kf7 {[%emt 0:00:50]} 53. f3 {[%emt 0:00:00]} Qd5 {[%emt 0:01:28]} 54. Kg3 {[%emt 0:00:00]} Qd6+ {[%emt 0:00:36]} 55. Kg2 {[%emt 0:00:00]} Qd5 {[%emt 0:00:55]} 56. g5 {[%emt 0:00:00] Qa7+ is the strong threat.} fxg5 {[%emt 0:00:35]} 57. hxg5 {[%emt 0:00:00]} Qf5 {[%emt 0:01:29]} 58. Kg3 {[%emt 0:00:00]} Qb1 {[%emt 0:00:22]} 59. Qf4+ {[%emt 0:00:00]} Kg7 {[%emt 0:01:47]} 60. Qe5+ {[%emt 0:00:00]} Kg8 {[%emt 0:01:49]} 61. Qd5+ {[%emt 0:00:00]} Kg7 {[%emt 0:00:21]} 62. Kf2 {[%emt 0:00:09] Dodges Qg1+} Qc2+ {[%emt 0:01:47]} 63. Ke3 {[%emt 0:00:18]} Qc3+ {[%emt 0:00:20] [#]} 64. Ke4 {[%emt 0:00:34]} ({White should try} 64. Ke2 $1 $16) 64... Qe1+ $11 {[%emt 0:00:16] The position is equal.} 65. Kd4 {[%emt 0:00:27] Intending Qe5+ and mate.} Qd2+ {[%emt 0:00:40]} 66. Kc5 {[%emt 0:00:54]} Qa5+ {[%emt 0:00:15] Weighted Error Value: White=0.06 (flawless) /Black=0.07 (flawless)} 1/2-1/2

[Event "ETCC Open 2023"]
[Site "Budva"]
[Date "2023.11.13"]
[Round "3.43"]
[White "Banusz, Tamas"]
[Black "Jobava, Baadur"]
[Result "1/2-1/2"]
[ECO "A37"]
[WhiteElo "2609"]
[BlackElo "2568"]
[Annotator "TA"]
[PlyCount "99"]
[EventDate "2023.11.10"]
[EventType "team-tourn"]
[EventCountry "MNE"]
[SourceTitle "playchess.com"]
[Source "ChessBase"]
[SourceQuality "1"]
[WhiteTeam "Hungary"]
[BlackTeam "Georgia"]
[WhiteTeamCountry "HUN"]
[BlackTeamCountry "GEO"]
[TimeControl "40/5400+30:1800+30"]

{[%evp 11,99,2,20,6,11,14,16,16,18,0,0,0,0,-7,7,0,0,-15,0,-7,0,0,-7,-43,0,0,0,0,0,0,0,0,0,0,0,0,0,0,0,0,0,-14,0,0,55,54,147,153,137,139,165,126,182,172,187,173,254,277,271,266,241,109,113,34,19,0,0,0,0,-14,-14,-14,-14,-326,0,0,0,0,37,0,37,0,0,0,0,0,0,0,0,0]} 1. Nf3 {[%emt 0:00:05]} c5 {[%emt 0:00:31]} 2. c4 {[%emt 0:00:28]} g6 {[%emt 0:00:14]} 3. g3 {[%emt 0:00:55]} Bg7 {[%emt 0:00:11]} 4. Bg2 {[%emt 0:00:06]} Nc6 {[%emt 0:00:08]} 5. O-O {[%emt 0:00:30]} d6 {[%emt 0:00:12]} 6. Nc3 {[%emt 0:01:03]} h5 {[%emt 0:00:24]} 7. b3 {[%emt 0:08:05] A37: Symmetrical English vs ...g6: 4 Bg2 Bg7 5 Nf3.} Nh6 {[%emt 0:02:24]} 8. Bb2 {[%emt 0:00:51]} Nf5 {[%emt 0:00:14]} 9. h4 {[%emt 0:01:26] [#]} Nfd4 $146 {[%emt 0:11:10]} ({Predecessor:} 9... O-O 10. e3 e5 11. Ng5 f6 12. Bd5+ Kh8 13. Nf7+ Rxf7 14. Bxf7 Nfe7 15. Bxg6 Bg4 {1-0 Theodorou,N (2575)-Ghazarian,K (2426) Titled Tuesday intern op 23rd Aug Late blitz 2022 (2)}) 10. Nxd4 {[%emt 0:03:33]} cxd4 {[%emt 0:05:43]} 11. Ne4 {[%emt 0:02:20]} O-O {[%emt 0:02:29]} 12. d3 {[%emt 0:02:48]} Bg4 {[%emt 0:02:13]} 13. Qd2 {[%emt 0:01:33]} Qd7 {[%emt 0:00:23]} 14. Rfc1 {[%emt 0:06:12]} Rac8 {[%emt 0:13:03]} 15. b4 {[%emt 0:03:34]} Nd8 {[%emt 0:00:37]} 16. Ng5 {[%emt 0:08:34]} Bh6 {[%emt 0:11:41] aiming for ...f6.} 17. f3 {[%emt 0:22:04]} (17. Bxd4 f6 18. Bd5+ e6 $17) 17... Bh3 {[%emt 0:08:48]} 18. Bxh3 {[%emt 0:06:06]} (18. Bxd4 $2 Bxg2 19. Kxg2 f6 20. Bxa7 fxg5 21. hxg5 Bg7 $17) 18... Qxh3 {[%emt 0:00:06]} 19. Nxh3 {[%emt 0:00:04]} Bxd2 {[%emt 0:00:07]} 20. Rc2 {[%emt 0:00:34]} Be3+ {[%emt 0:00:05]} 21. Kf1 {[%emt 0:02:22]} e5 {[%emt 0:00:50]} 22. Bc1 {[%emt 0:02:03]} Kg7 {[%emt 0:11:06]} 23. Ng5 {[%emt 0:03:05]} d5 {[%emt 0:01:12]} 24. Bxe3 {[%emt 0:05:27]} dxe3 {[%emt 0:00:53]} 25. Rac1 {[%emt 0:00:38]} f6 {[%emt 0:00:19]} 26. Nh3 {[%emt 0:00:04]} d4 {[%emt 0:00:42]} 27. Kg2 {[%emt 0:01:46]} g5 {[%emt 0:23:12]} 28. hxg5 $14 {[%emt 0:01:54]} f5 {[%emt 0:00:04]} ({Better is} 28... Ne6 $14) 29. f4 $16 {[%emt 0:03:01]} e4 {[%emt 0:00:18]} 30. c5 {[%emt 0:03:45]} Ne6 {[%emt 0:01:55]} 31. Rc4 {[%emt 0:01:49]} Rf7 {[%emt 0:00:39] [#]} (31... Rc7 $16) 32. a4 $1 $18 {[%emt 0:01:10]} Kg6 {[%emt 0:01:47]} 33. c6 {[%emt 0:01:02] Black must now prevent cxb7.} Rxc6 {[%emt 0:02:36]} (33... b6 $142 34. Rd1 Rh7) 34. Rxc6 {[%emt 0:00:05]} bxc6 {[%emt 0:00:03]} 35. Rxc6 {[%emt 0:00:06][%mdl 4096] Endgame KRN-KRN} Re7 {[%emt 0:00:02]} 36. Ng1 {[%emt 0:04:11]} (36. dxe4 fxe4 37. Rd6 d3 38. exd3 exd3 $14) (36. Rd6 $18 {has better winning chances.}) 36... Kf7 $16 {[%emt 0:00:30]} 37. Rd6 {[%emt 0:01:51]} (37. Ra6 $16) 37... Rc7 $1 $14 {[%emt 0:01:08]} 38. Rd5 {[%emt 0:01:41]} Rc2 {[%emt 0:00:49]} 39. Rxf5+ {[%emt 0:00:51]} Ke7 {[%emt 0:00:10]} 40. Kf1 {[%emt 0:02:00]} exd3 {[%emt 0:00:31]} 41. exd3 {[%emt 0:30:12] Threatens to win with Ne2.} h4 {[%emt 0:02:37]} 42. Re5 $2 {[%emt 0:00:00][%mdl 8192]} (42. gxh4 $11 {and White stays safe.} Rf2+ 43. Ke1) 42... hxg3 $2 {[%emt 0:04:06]} ({Don't go for} 42... Rf2+ $2 43. Ke1 Kd6 44. Rxe6+ (44. gxh4 {leads to mate.} Nxf4 45. Kd1 Rd2+ 46. Kc1 Nxd3+ 47. Kb1 Nxe5 48. h5 Rd1+ 49. Kb2 Rxg1 50. g6 e2 51. a5 e1=Q 52. Ka3 Qa1+ 53. Kb3 Rb1+ {[%mdl 64] Skewer} 54. Kc2 Rb2#) (44. Nh3 $2 Rh2 $19) 44... Kxe6 45. gxh4 Rxf4 46. h5 $19) ({Black should try} 42... Kd6 $19 43. Ne2 (43. gxh4 Rf2+ 44. Ke1 Nxf4) 43... Rd2 44. Rxe6+ (44. gxh4 $2 Nxf4 45. Nxf4 Kxe5 $19) 44... Kxe6 45. gxh4 (45. Nxd4+ $2 Kd5 $19) 45... Rxd3) 43. f5 $11 {[%emt 0:00:00][%mdl 64] [#] Pin} g2+ {[%emt 0:11:44]} 44. Ke1 {[%emt 0:00:00]} Rc1+ {[%emt 0:00:38]} 45. Ke2 {[%emt 0:00:00][%cal Oe2f3] And now Kf3! would win. Dancing on a razor blade.} Rxg1 {[%emt 0:00:05]} (45... Rf1 $5) 46. Rxe6+ {[%emt 0:00:00]} (46. Kf3 $5) 46... Kd7 {[%emt 0:00:43] ( -> ...Rf1). The position is equal.} 47. Kf3 {[%emt 0:00:00] Strongly threatening Re4.} Rf1+ {[%emt 0:00:07]} 48. Kxg2 {[%emt 0:00:00]} Rxf5 {[%emt 0:00:04]} 49. Re4 {[%emt 0:00:00]} Rxg5+ {[%emt 0:00:09]} 50. Kf3 {[%emt 0:00:00] Black defended with fortune.   Weighted Error Value: White=0.24 (precise) /Black=0.26 (precise)} 1/2-1/2

[Event "ETCC Open 2023"]
[Site "Budva"]
[Date "2023.11.13"]
[Round "3.44"]
[White "Kacharava, Nikolozi"]
[Black "Kozak, Adam"]
[Result "1/2-1/2"]
[ECO "C65"]
[WhiteElo "2519"]
[BlackElo "2578"]
[Annotator "TA"]
[PlyCount "106"]
[EventDate "2023.11.10"]
[EventType "team-tourn"]
[EventCountry "MNE"]
[SourceTitle "playchess.com"]
[Source "ChessBase"]
[SourceQuality "1"]
[WhiteTeam "Georgia"]
[BlackTeam "Hungary"]
[WhiteTeamCountry "GEO"]
[BlackTeamCountry "HUN"]
[TimeControl "40/5400+30:1800+30"]

{[%evp 9,106,8,16,16,15,10,21,10,17,13,14,11,20,12,20,18,13,10,19,6,12,7,13,-15,0,0,0,0,0,-17,0,-86,11,7,19,0,15,14,13,0,11,0,0,0,70,6,53,33,174,50,157,165,158,158,279,281,295,298,206,121,129,36,331,350,352,340,321,118,122,81,72,61,67,25,32,28,26,27,25,25,25,25,32,34,35,34,44,43,43,0,0,0,0,0,0,0,0,0,0]} 1. e4 {[%emt 0:00:13]} e5 {[%emt 0:00:19]} 2. Nf3 {[%emt 0:00:29]} Nc6 {[%emt 0:00:10]} 3. Bb5 {[%emt 0:00:37]} Nf6 {[%emt 0:00:08]} 4. d3 {[%emt 0:00:48][%cal Bd2d3,Bd3d4][%mdl 32]} Bc5 {[%emt 0:00:10]} 5. Bxc6 {[%emt 0:01:11]} dxc6 {[%emt 0:00:08]} 6. O-O {[%emt 0:00:39] C65: Ruy Lopez: Berlin Defence (3...Nf6), unusual lines and 4 0-0 Bc5.} Nd7 {[%emt 0:02:13]} 7. c3 $1 {[%emt 0:01:28][%mdl 4] is currently scoring better than 7.Nbd2.} O-O {[%emt 0:02:14]} 8. d4 {[%emt 0:01:39]} Bd6 {[%emt 0:05:41]} 9. Bg5 {[%emt 0:00:48][%cal Bc1g5,Bg5h4,Bh4g3][%mdl 32]} f6 {[%emt 0:00:04]} 10. Bh4 {[%emt 0:00:50]} Qe8 {[%emt 0:00:09]} 11. Nbd2 {[%emt 0:02:40]} Qf7 {[%emt 0:00:59]} 12. Bg3 {[%emt 0:06:05]} Re8 {[%emt 0:05:18]} 13. Re1 {[%emt 0:08:13]} a5 {[%emt 0:00:55]} 14. Qc2 {[%emt 0:13:32]} a4 {[%emt 0:11:12]} 15. Nf1 {[%emt 0:01:16] [#]} exd4 $146 {[%emt 0:14:31]} ({Predecessor:} 15... Nb6 16. Ne3 Nc4 17. Nxc4 Qxc4 18. b3 Qa6 19. Rab1 c5 20. dxe5 fxe5 21. c4 Bg4 {0-1 Gunina,V (2437)-Pechac,J (2523) Skalica op 2021 (4)}) 16. Nxd4 {[%emt 0:09:17]} Ne5 {[%emt 0:03:10]} 17. Ne3 {[%emt 0:02:40]} Bf8 {[%emt 0:00:58]} 18. c4 {[%emt 0:19:55]} Bc5 {[%emt 0:23:09]} 19. Qc3 {[%emt 0:04:17]} Qf8 {[%emt 0:05:24]} 20. Nec2 {[%emt 0:01:49] Prevents Bb4.} (20. Red1 $11) 20... Qf7 {[%emt 0:01:52]} (20... Bb6 $1 $17 {[%cal Rb6a5] And now ...Ba5 would win.} 21. Red1 c5) 21. b3 $11 {[%emt 0:02:11]} Bf8 {[%emt 0:05:29]} 22. f3 {[%emt 0:05:44]} Bd7 {[%emt 0:03:50]} 23. Ne3 {[%emt 0:02:21]} b6 {[%emt 0:06:18]} 24. Red1 {[%emt 0:13:48]} Rad8 {[%emt 0:05:12]} 25. Rd2 {[%emt 0:00:00]} axb3 {[%emt 0:01:16]} 26. axb3 {[%emt 0:00:00]} Ra8 {[%emt 0:00:46]} (26... Bd6 $11) 27. Rad1 {[%emt 0:00:00]} (27. Rxa8 $14 Rxa8 28. f4) 27... g6 {[%emt 0:01:43]} (27... Bd6 $11 {should be considered.}) 28. h3 $14 {[%emt 0:00:00] Strongly threatening f4.} c5 {[%emt 0:00:40]} (28... Qe7 $14) 29. Ne2 {[%emt 0:00:00]} (29. Nb5 $1 $18 {[%cal Rb5c7]} Bxb5 30. cxb5) 29... Be6 {[%emt 0:00:31] [#]} (29... Bc6 $14) 30. f4 $1 $16 {[%emt 0:00:00]} ({Of course not} 30. Bxe5 $6 fxe5 31. Ng4 (31. Qxe5 Bxc4 32. Qb2 Bg7 $17) 31... Bxg4 32. fxg4 Qe6 $11) 30... Nc6 {[%emt 0:00:22]} 31. f5 $36 {[%emt 0:00:00][%mdl 2048] White is really pushing.} gxf5 {[%emt 0:00:33]} (31... Bc8 $16) 32. exf5 $18 {[%emt 0:00:00]} Bc8 {[%emt 0:00:28]} 33. Nd5 {[%emt 0:00:00]} Ne5 {[%emt 0:00:15]} 34. Nef4 {[%emt 0:00:00]} ({Stronger than} 34. Bxe5 Rxe5 35. Qf3 Bb7 $14) ({White should play} 34. Bh4 $18 Bg7 35. Ng3 (35. Qg3 Kh8 $16)) 34... Bg7 $16 {[%emt 0:00:20]} (34... Bxf5 $2 35. Nh5 Bg7 36. Nxg7 Qxg7 37. Bh4 $18) 35. Rf1 {[%emt 0:01:33]} (35. Qc2 $16) 35... Rb8 $2 {[%emt 0:01:00][%mdl 8192] [#]} ({Better is} 35... Bxf5 $14 36. Ne2 Bg6) 36. Nd3 $1 $18 {[%emt 0:01:01] Bxe5 is the strong threat. Excellent horsemanship.} c6 {[%emt 0:00:31]} 37. Nxe5 {[%emt 0:02:53]} fxe5 {[%emt 0:00:07]} 38. f6 $2 {[%emt 0:00:33]} (38. Nc7 $18 {is more deadly.} Qxc7 39. f6) 38... cxd5 $16 {[%emt 0:00:43]} 39. fxg7 {[%emt 0:00:05] White has more active pieces. The black rooks are badly placed.} d4 {[%emt 0:00:32]} 40. Rxf7 {[%emt 0:00:40] White wants to mate with Qf3.} dxc3 {[%emt 0:00:04] [#]} 41. Rf8+ $1 {[%emt 0:05:00][%mdl 64] Decoy} Rxf8 {[%emt 0:15:02]} 42. gxf8=Q+ {[%emt 0:00:10]} Kxf8 $11 {[%emt 0:00:03][%mdl 4096] Endgame KRB-KRB} 43. Rf2+ {[%emt 0:01:23]} Ke8 {[%emt 0:01:14]} 44. Bxe5 {[%emt 0:02:17]} Ra8 {[%emt 0:00:54]} 45. Rc2 {[%emt 0:04:03]} Ra1+ {[%emt 0:04:49]} 46. Kf2 {[%emt 0:00:50]} Bf5 {[%emt 0:04:25]} 47. Rxc3 {[%emt 0:05:00]} Ra2+ {[%emt 0:02:41]} 48. Kf3 {[%emt 0:02:12]} Kd7 {[%emt 0:00:46]} 49. Bf4 {[%emt 0:03:35]} (49. g4 $5 {[%cal Rg4f5]} Bb1 50. h4 $14) 49... Rb2 {[%emt 0:02:37] The position is equal.} 50. Bc1 {[%emt 0:03:15]} Rc2 {[%emt 0:00:08]} 51. Rxc2 {[%emt 0:00:15]} Bxc2 {[%emt 0:00:03]} 52. b4 {[%emt 0:02:00]} Bd3 {[%emt 0:01:06]} 53. bxc5 {[%emt 0:00:18]} bxc5 {[%emt 0:00:05] Blacks defense is rewarded with a draw.   Weighted Error Value: White=0.26 (precise) /Black=0.29 (precise)} 1/2-1/2